[Event "*** Titled Tuesday Blitz"]
[Site "Chess.com"]
[Date "2020.01.07"]
[Round "7"]
[White "yy2324"]
[Black "GMHess"]
[Result "0-1"]
[WhiteElo "2576"]
[BlackElo "2763"]
[TimeControl "180+2"]
[EndTime "14:35:34 PST"]
[Termination "GMHess won by resignation"]

1. e4 {[%clk 0:01:44.3]} 1... d6 {[%clk 0:02:58.7]} 2. d4 {[%clk 0:01:45.1]}
2... Nf6 {[%clk 0:03:00.6]} 3. Nc3 {[%clk 0:01:46]} 3... c6 {[%clk 0:03:01.6]}
4. Nf3 {[%clk 0:01:46.3]} 4... Bg4 {[%clk 0:03:02.7]} 5. Be2 {[%clk 0:01:47.3]}
5... Nbd7 {[%clk 0:03:01.6]} 6. h3 {[%clk 0:01:48.4]} 6... Bxf3 {[%clk
0:03:01.8]} 7. Bxf3 {[%clk 0:01:50.3]} 7... e5 {[%clk 0:03:03.5]} 8. O-O {[%clk
0:01:49.9]} 8... b5 {[%clk 0:03:04.1]} 9. d5 {[%clk 0:01:47]} 9... b4 {[%clk
0:03:01.5]} 10. Ne2 {[%clk 0:01:46.7]} 10... cxd5 {[%clk 0:03:01.5]} 11. exd5
{[%clk 0:01:46]} 11... e4 {[%clk 0:03:00.5]} 12. Bg4 {[%clk 0:01:40.3]} 12...
Ne5 {[%clk 0:02:59.2]} 13. Ng3 {[%clk 0:01:28.4]} 13... h6 {[%clk 0:02:43.5]}
14. Re1 {[%clk 0:01:22]} 14... h5 {[%clk 0:02:41.7]} 15. Bf5 {[%clk 0:01:15.8]}
15... g6 {[%clk 0:02:42.2]} 16. Bxe4 {[%clk 0:01:16.9]} 16... h4 {[%clk
0:02:42.9]} 17. Nf1 {[%clk 0:01:13.4]} 17... Be7 {[%clk 0:02:13.3]} 18. f4
{[%clk 0:01:08.8]} 18... Ned7 {[%clk 0:02:08.8]} 19. Qd3 {[%clk 0:01:06.7]}
19... Nc5 {[%clk 0:02:05.8]} 20. Qb5+ {[%clk 0:01:07.3]} 20... Kf8 {[%clk
0:02:05.9]} 21. Bf3 {[%clk 0:01:05.1]} 21... Rb8 {[%clk 0:01:50.7]} 22. Qe2
{[%clk 0:01:03.2]} 22... Nfd7 {[%clk 0:01:42.4]} 23. Ne3 {[%clk 0:00:50.2]}
23... Bf6 {[%clk 0:01:42.8]} 24. Nc4 {[%clk 0:00:50.9]} 24... Na4 {[%clk
0:01:05.3]} 25. Nxd6 {[%clk 0:00:39.5]} 25... Qb6+ {[%clk 0:01:03.1]} 26. Kh1
{[%clk 0:00:21.7]} 26... Qxd6 {[%clk 0:01:03.4]} 27. Qc4 {[%clk 0:00:14.1]}
27... Kg7 {[%clk 0:01:01]} 28. Rb1 {[%clk 0:00:12.5]} 28... Rhc8 {[%clk
0:01:01.2]} 29. Qe4 {[%clk 0:00:12]} 29... Ndc5 {[%clk 0:00:53.9]} 30. Qe2
{[%clk 0:00:12.6]} 30... Re8 {[%clk 0:00:54.7]} 31. Be3 {[%clk 0:00:11.7]} 31...
Nxb2 {[%clk 0:00:49.2]} 32. Bxc5 {[%clk 0:00:08.5]} 32... Qxc5 {[%clk
0:00:51.1]} 33. Qxe8 {[%clk 0:00:08.5]} 33... Rxe8 {[%clk 0:00:52.6]} 34. Rxe8
{[%clk 0:00:10]} 34... Qxc2 {[%clk 0:00:53.9]} 35. Rbe1 {[%clk 0:00:10.6]} 35...
Nd3 {[%clk 0:00:55]} 36. Rd1 {[%clk 0:00:08.1]} 36... Nf2+ {[%clk 0:00:55.7]}
0-1

[Event "*** Titled Tuesday Blitz"]
[Site "Chess.com"]
[Date "2020.01.07"]
[Round "7"]
[White "Hrant_ChessMood"]
[Black "Duhless"]
[Result "1/2-1/2"]
[WhiteElo "2942"]
[BlackElo "3111"]
[TimeControl "180+2"]
[EndTime "14:35:49 PST"]
[Termination "Game drawn by agreement"]

1. d4 {[%clk 0:03:01.9]} 1... d5 {[%clk 0:03:00.5]} 2. c4 {[%clk 0:03:03.2]}
2... e6 {[%clk 0:03:01.4]} 3. Nf3 {[%clk 0:03:04.1]} 3... Nf6 {[%clk 0:03:02.2]}
4. Nc3 {[%clk 0:03:05.2]} 4... Bb4 {[%clk 0:03:02.5]} 5. Bg5 {[%clk 0:03:03.8]}
5... h6 {[%clk 0:03:02.3]} 6. Bxf6 {[%clk 0:03:04.9]} 6... Qxf6 {[%clk
0:03:02.7]} 7. e3 {[%clk 0:03:06.4]} 7... O-O {[%clk 0:03:02.3]} 8. Rc1 {[%clk
0:03:07.9]} 8... Nd7 {[%clk 0:03:01.6]} 9. Qb3 {[%clk 0:02:44.8]} 9... c5 {[%clk
0:03:01.3]} 10. dxc5 {[%clk 0:02:41]} 10... a5 {[%clk 0:03:01.2]} 11. a3 {[%clk
0:02:32.3]} 11... Nxc5 {[%clk 0:03:01]} 12. Qc2 {[%clk 0:02:33.4]} 12... Bxc3+
{[%clk 0:02:52.7]} 13. Qxc3 {[%clk 0:02:35.3]} 13... Qxc3+ {[%clk 0:02:52.7]}
14. Rxc3 {[%clk 0:02:37.2]} 14... dxc4 {[%clk 0:02:38.1]} 15. Bxc4 {[%clk
0:02:39.1]} 15... b6 {[%clk 0:02:39.4]} 16. Nd4 {[%clk 0:02:33]} 16... Bb7
{[%clk 0:02:39.9]} 17. f3 {[%clk 0:02:31.4]} 17... Rfc8 {[%clk 0:02:39.9]} 18.
Bb5 {[%clk 0:02:24.5]} 18... g6 {[%clk 0:02:34.4]} 19. O-O {[%clk 0:02:15.7]}
19... e5 {[%clk 0:02:35.1]} 20. Nb3 {[%clk 0:02:00.5]} 20... Nxb3 {[%clk
0:02:23.7]} 21. Rxb3 {[%clk 0:02:02.4]} 21... Bd5 {[%clk 0:02:24.7]} 22. Rd3
{[%clk 0:01:56.1]} 22... Rc5 {[%clk 0:02:23.3]} 23. Rxd5 {[%clk 0:01:14.1]}
23... Rxd5 {[%clk 0:02:25.2]} 24. Bc6 {[%clk 0:01:16]} 24... Rad8 {[%clk
0:02:25.1]} 25. Bxd5 {[%clk 0:01:17.1]} 25... Rxd5 {[%clk 0:02:27]} 26. e4
{[%clk 0:01:19]} 26... Rb5 {[%clk 0:02:14.5]} 27. Rf2 {[%clk 0:01:19.8]} 27...
f5 {[%clk 0:02:04.5]} 28. Rc2 {[%clk 0:01:14.6]} 28... fxe4 {[%clk 0:01:49.4]}
29. fxe4 {[%clk 0:01:16.5]} 29... Kf7 {[%clk 0:01:50.6]} 30. Kf2 {[%clk
0:01:17.1]} 30... Kf6 {[%clk 0:01:46.9]} 31. h4 {[%clk 0:01:13.6]} 31... g5
{[%clk 0:01:28.8]} 32. Rc6+ {[%clk 0:01:07.4]} 32... Kg7 {[%clk 0:01:29.4]} 33.
hxg5 {[%clk 0:01:06.9]} 33... Rxb2+ {[%clk 0:01:29.3]} 34. Kf3 {[%clk
0:01:08.3]} 34... hxg5 {[%clk 0:01:29.8]} 35. g3 {[%clk 0:01:09.9]} 35... Rb3+
{[%clk 0:01:03.7]} 36. Kg4 {[%clk 0:01:10.3]} 36... Rxa3 {[%clk 0:01:00.4]} 37.
Rxb6 {[%clk 0:01:11.1]} 37... a4 {[%clk 0:00:35.4]} 38. Ra6 {[%clk 0:01:06.1]}
38... Kf7 {[%clk 0:00:23.2]} 39. Kxg5 {[%clk 0:00:55.1]} 39... Rxg3+ {[%clk
0:00:20.9]} 40. Kf5 {[%clk 0:00:56.1]} 1/2-1/2

[Event "*** Titled Tuesday Blitz"]
[Site "Chess.com"]
[Date "2020.01.07"]
[Round "7"]
[White "stoleriu"]
[Black "Quiet_Desperation"]
[Result "0-1"]
[WhiteElo "2543"]
[BlackElo "2392"]
[TimeControl "180+2"]
[EndTime "14:35:49 PST"]
[Termination "Quiet_Desperation won by resignation"]

1. e4 {[%clk 0:02:46.2]} 1... e6 {[%clk 0:02:59.5]} 2. d4 {[%clk 0:02:45.5]}
2... d5 {[%clk 0:03:00.1]} 3. Nc3 {[%clk 0:02:46.3]} 3... Nf6 {[%clk 0:03:00.4]}
4. e5 {[%clk 0:02:47.4]} 4... Nfd7 {[%clk 0:03:01.5]} 5. f4 {[%clk 0:02:49.3]}
5... c5 {[%clk 0:03:02.9]} 6. Nf3 {[%clk 0:02:51]} 6... Nc6 {[%clk 0:03:04.4]}
7. Be3 {[%clk 0:02:51.6]} 7... Be7 {[%clk 0:03:05.6]} 8. Qd2 {[%clk 0:02:52.5]}
8... a6 {[%clk 0:03:06.1]} 9. Be2 {[%clk 0:02:48.9]} 9... cxd4 {[%clk
0:03:05.5]} 10. Nxd4 {[%clk 0:02:49.6]} 10... Nxd4 {[%clk 0:03:06.9]} 11. Bxd4
{[%clk 0:02:50.2]} 11... f6 {[%clk 0:03:08.4]} 12. exf6 {[%clk 0:02:49.2]} 12...
Nxf6 {[%clk 0:03:09.3]} 13. O-O {[%clk 0:02:49.3]} 13... O-O {[%clk 0:03:10.3]}
14. Bd3 {[%clk 0:02:49.4]} 14... Bd7 {[%clk 0:03:09.9]} 15. Rae1 {[%clk
0:02:48.2]} 15... Rc8 {[%clk 0:03:10.4]} 16. Kh1 {[%clk 0:02:39.9]} 16... Bc5
{[%clk 0:02:50.8]} 17. Be5 {[%clk 0:02:24.6]} 17... Ng4 {[%clk 0:02:43.5]} 18.
Qe2 {[%clk 0:01:32]} 18... Qh4 {[%clk 0:02:27.7]} 19. h3 {[%clk 0:01:11.7]}
19... Nxe5 {[%clk 0:01:59.3]} 20. Qxe5 {[%clk 0:01:13.5]} 20... Bf2 {[%clk
0:01:31.5]} 21. Re2 {[%clk 0:00:59.3]} 21... Bg3 {[%clk 0:01:30.9]} 22. Nxd5
{[%clk 0:00:40.9]} 22... exd5 {[%clk 0:01:24.5]} 23. Qxd5+ {[%clk 0:00:42.7]}
23... Rf7 {[%clk 0:01:25.4]} 24. Re7 {[%clk 0:00:43.8]} 24... Qxe7 {[%clk
0:01:20.3]} 25. Qh5 {[%clk 0:00:34.1]} 25... g6 {[%clk 0:01:13.4]} 26. Qf3
{[%clk 0:00:26.2]} 26... Bxf4 {[%clk 0:01:07.2]} 27. Qd5 {[%clk 0:00:19.8]}
27... Bc6 {[%clk 0:00:56.6]} 28. Qb3 {[%clk 0:00:13]} 28... Bb5 {[%clk
0:00:36.1]} 29. Bxb5 {[%clk 0:00:05]} 29... axb5 {[%clk 0:00:37]} 30. Rxf4
{[%clk 0:00:06.9]} 30... Rc4 {[%clk 0:00:25]} 0-1

[Event "*** Titled Tuesday Blitz"]
[Site "Chess.com"]
[Date "2020.01.07"]
[Round "7"]
[White "r31415"]
[Black "Mikasinski"]
[Result "1-0"]
[WhiteElo "2479"]
[BlackElo "2296"]
[TimeControl "180+2"]
[EndTime "14:35:51 PST"]
[Termination "r31415 won by checkmate"]

1. e4 {[%clk 0:03:01.9]} 1... e6 {[%clk 0:03:00.4]} 2. d4 {[%clk 0:03:02.7]}
2... d5 {[%clk 0:03:00.2]} 3. Nc3 {[%clk 0:03:04.2]} 3... Bb4 {[%clk 0:02:57.6]}
4. exd5 {[%clk 0:03:05.1]} 4... exd5 {[%clk 0:02:55.2]} 5. Bd3 {[%clk
0:03:06.5]} 5... Ne7 {[%clk 0:02:54.1]} 6. Qf3 {[%clk 0:03:02.5]} 6... Nbc6
{[%clk 0:02:47.1]} 7. Ne2 {[%clk 0:03:02.4]} 7... Be6 {[%clk 0:02:46.7]} 8. Be3
{[%clk 0:03:00.9]} 8... Qd7 {[%clk 0:02:42.1]} 9. h3 {[%clk 0:03:01.4]} 9... Nf5
{[%clk 0:02:37.3]} 10. Bb5 {[%clk 0:02:48.4]} 10... a6 {[%clk 0:02:32.7]} 11.
Ba4 {[%clk 0:02:49.3]} 11... b5 {[%clk 0:02:30.4]} 12. Bb3 {[%clk 0:02:50.1]}
12... Na5 {[%clk 0:02:18.3]} 13. O-O {[%clk 0:02:32.4]} 13... Nc4 {[%clk
0:01:57.5]} 14. Bxc4 {[%clk 0:02:18]} 14... bxc4 {[%clk 0:01:56.3]} 15. a3
{[%clk 0:02:19.2]} 15... Be7 {[%clk 0:01:49.3]} 16. Nf4 {[%clk 0:02:15.4]} 16...
c6 {[%clk 0:01:47.5]} 17. Na4 {[%clk 0:02:12.2]} 17... Rb8 {[%clk 0:01:39.9]}
18. Rad1 {[%clk 0:01:49.7]} 18... O-O {[%clk 0:01:34.4]} 19. Bc1 {[%clk
0:01:49.5]} 19... Bd6 {[%clk 0:00:26.3]} 20. Rfe1 {[%clk 0:01:43.5]} 20... Rfe8
{[%clk 0:00:24.5]} 21. Nh5 {[%clk 0:01:32.1]} 21... Nh4 {[%clk 0:00:21]} 22. Qc3
{[%clk 0:01:18.2]} 22... Ng6 {[%clk 0:00:18.2]} 23. Nc5 {[%clk 0:01:12]} 23...
Bxc5 {[%clk 0:00:18.9]} 24. dxc5 {[%clk 0:01:13.9]} 24... f6 {[%clk 0:00:16.1]}
25. Bh6 {[%clk 0:01:15.4]} 25... Bg4 {[%clk 0:00:04]} 26. hxg4 {[%clk 0:01:11]}
26... Qxg4 {[%clk 0:00:03.6]} 27. Qxf6 {[%clk 0:00:51.8]} 27... gxf6 {[%clk
0:00:02.9]} 28. Nxf6+ {[%clk 0:00:52.2]} 28... Kf7 {[%clk 0:00:04.2]} 29. Nxg4
{[%clk 0:00:54.1]} 29... Rxe1+ {[%clk 0:00:04.5]} 30. Rxe1 {[%clk 0:00:56]}
30... Rxb2 {[%clk 0:00:05.2]} 31. Bg5 {[%clk 0:00:49.9]} 31... Rxc2 {[%clk
0:00:04.9]} 32. Nh6+ {[%clk 0:00:51.8]} 32... Kf8 {[%clk 0:00:04.8]} 33. Re6
{[%clk 0:00:42.1]} 33... Ra2 {[%clk 0:00:03.8]} 34. Rxc6 {[%clk 0:00:41.9]}
34... c3 {[%clk 0:00:04.5]} 35. Rc8+ {[%clk 0:00:42.2]} 35... Kg7 {[%clk
0:00:05.6]} 36. Rg8# {[%clk 0:00:43]} 1-0

[Event "*** Titled Tuesday Blitz"]
[Site "Chess.com"]
[Date "2020.01.07"]
[Round "7"]
[White "chess3054"]
[Black "lucasran"]
[Result "1-0"]
[WhiteElo "2448"]
[BlackElo "2636"]
[TimeControl "180+2"]
[EndTime "14:35:55 PST"]
[Termination "chess3054 won by checkmate"]

1. e4 {[%clk 0:03:01.9]} 1... c6 {[%clk 0:03:01]} 2. d4 {[%clk 0:03:02]} 2... d5
{[%clk 0:03:02.9]} 3. Nd2 {[%clk 0:03:02.8]} 3... dxe4 {[%clk 0:03:03.9]} 4.
Nxe4 {[%clk 0:03:04.7]} 4... Bf5 {[%clk 0:03:04.7]} 5. Ng3 {[%clk 0:03:04.4]}
5... Bg6 {[%clk 0:03:05.8]} 6. Nf3 {[%clk 0:03:04.3]} 6... Nd7 {[%clk
0:03:05.6]} 7. h4 {[%clk 0:03:05.1]} 7... h6 {[%clk 0:03:06.8]} 8. h5 {[%clk
0:03:06]} 8... Bh7 {[%clk 0:03:08.3]} 9. Bd3 {[%clk 0:03:07.6]} 9... Bxd3 {[%clk
0:03:10]} 10. Qxd3 {[%clk 0:03:09.2]} 10... e6 {[%clk 0:03:11.8]} 11. Bd2 {[%clk
0:03:10.2]} 11... Ngf6 {[%clk 0:03:12.9]} 12. O-O-O {[%clk 0:03:10.8]} 12... a5
{[%clk 0:03:14.6]} 13. c4 {[%clk 0:03:09.9]} 13... Bb4 {[%clk 0:03:13.8]} 14.
Ne4 {[%clk 0:03:05.4]} 14... Nxe4 {[%clk 0:03:13.3]} 15. Qxe4 {[%clk 0:03:07.3]}
15... Nf6 {[%clk 0:03:12]} 16. Qe2 {[%clk 0:03:08.2]} 16... O-O {[%clk
0:03:09.1]} 17. g4 {[%clk 0:03:00.3]} 17... b5 {[%clk 0:03:02.4]} 18. g5 {[%clk
0:02:41.5]} 18... hxg5 {[%clk 0:03:02.9]} 19. Bxg5 {[%clk 0:02:38.3]} 19... bxc4
{[%clk 0:03:03]} 20. Ne5 {[%clk 0:02:22.8]} 20... c3 {[%clk 0:02:40.4]} 21. h6
{[%clk 0:02:17.3]} 21... cxb2+ {[%clk 0:02:40.6]} 22. Kb1 {[%clk 0:02:15.5]}
22... g6 {[%clk 0:01:28.7]} 23. Nxc6 {[%clk 0:02:03.5]} 23... Qd5 {[%clk
0:01:28.5]} 24. Bxf6 {[%clk 0:02:01.8]} 24... Qf5+ {[%clk 0:01:28.9]} 25. Kxb2
{[%clk 0:01:49]} 25... Qxf6 {[%clk 0:01:30.8]} 26. Ne5 {[%clk 0:01:39.8]} 26...
Rfc8 {[%clk 0:01:04.9]} 27. h7+ {[%clk 0:01:39.6]} 27... Kh8 {[%clk 0:01:05.4]}
28. Rd3 {[%clk 0:01:29]} 28... Rc7 {[%clk 0:00:56.2]} 29. Rf3 {[%clk 0:01:17.7]}
29... Qg7 {[%clk 0:00:57.4]} 30. Qe4 {[%clk 0:00:57.1]} 30... Rac8 {[%clk
0:00:55.5]} 31. Rxf7 {[%clk 0:00:57.3]} 31... Bc3+ {[%clk 0:00:34.3]} 32. Ka3
{[%clk 0:00:51.5]} 32... Bb4+ {[%clk 0:00:12.8]} 33. Ka4 {[%clk 0:00:51.8]}
33... Rxf7 {[%clk 0:00:13.6]} 34. Nxg6+ {[%clk 0:00:52.5]} 34... Qxg6 {[%clk
0:00:14.9]} 35. Qxg6 {[%clk 0:00:54.4]} 35... Rcf8 {[%clk 0:00:11.9]} 36. Qxe6
{[%clk 0:00:53.4]} 36... Rf3 {[%clk 0:00:06.5]} 37. Rg1 {[%clk 0:00:50.1]} 37...
Kxh7 {[%clk 0:00:03.5]} 38. Qg6+ {[%clk 0:00:49.7]} 38... Kh8 {[%clk 0:00:04.7]}
39. Qh6# {[%clk 0:00:51]} 1-0

[Event "*** Titled Tuesday Blitz"]
[Site "Chess.com"]
[Date "2020.01.07"]
[Round "7"]
[White "Rainbow2014"]
[Black "AndrewDGreen"]
[Result "1-0"]
[WhiteElo "2264"]
[BlackElo "2192"]
[TimeControl "180+2"]
[EndTime "14:36:05 PST"]
[Termination "Rainbow2014 won on time"]

1. e4 {[%clk 0:02:56.5]} 1... c5 {[%clk 0:02:58.4]} 2. Nf3 {[%clk 0:02:52.9]}
2... g6 {[%clk 0:02:59]} 3. d4 {[%clk 0:02:53.5]} 3... cxd4 {[%clk 0:03:00.9]}
4. Nxd4 {[%clk 0:02:54.8]} 4... Nc6 {[%clk 0:03:01.7]} 5. Nc3 {[%clk 0:02:55.5]}
5... Bg7 {[%clk 0:03:02.6]} 6. Be3 {[%clk 0:02:56.6]} 6... Nf6 {[%clk
0:03:03.8]} 7. Bc4 {[%clk 0:02:55.6]} 7... O-O {[%clk 0:03:04.7]} 8. O-O {[%clk
0:02:49.8]} 8... Nxe4 {[%clk 0:03:01.2]} 9. Nxe4 {[%clk 0:02:44.8]} 9... d5
{[%clk 0:03:01.6]} 10. Nxc6 {[%clk 0:02:31.1]} 10... bxc6 {[%clk 0:03:03.5]} 11.
Bd3 {[%clk 0:02:26.4]} 11... dxe4 {[%clk 0:03:03.3]} 12. Bxe4 {[%clk 0:02:18.3]}
12... Bxb2 {[%clk 0:02:50.1]} 13. Rb1 {[%clk 0:02:14]} 13... Rb8 {[%clk
0:02:02.2]} 14. Bxa7 {[%clk 0:02:00]} 14... Rb7 {[%clk 0:02:01.8]} 15. Bc5
{[%clk 0:01:48]} 15... Qc7 {[%clk 0:01:56.7]} 16. Qf3 {[%clk 0:01:46.1]} 16...
Be5 {[%clk 0:01:47.3]} 17. Bxc6 {[%clk 0:01:43.8]} 17... Rxb1 {[%clk 0:01:36.6]}
18. Rxb1 {[%clk 0:01:45.7]} 18... Bxh2+ {[%clk 0:01:24.9]} 19. Kh1 {[%clk
0:01:46.4]} 19... Be5 {[%clk 0:01:16.4]} 20. a4 {[%clk 0:01:44.7]} 20... Bf5
{[%clk 0:01:11.1]} 21. Bb6 {[%clk 0:01:31.7]} 21... Qd6 {[%clk 0:01:01.4]} 22.
Be4 {[%clk 0:01:12.9]} 22... Bxe4 {[%clk 0:00:28.4]} 23. Qxe4 {[%clk 0:01:11.2]}
23... Qf6 {[%clk 0:00:29.5]} 24. a5 {[%clk 0:01:07.3]} 24... Qg5 {[%clk
0:00:24.2]} 25. g3 {[%clk 0:01:00.8]} 25... Bd6 {[%clk 0:00:14.1]} 26. a6 {[%clk
0:00:59.6]} 26... h5 {[%clk 0:00:10.7]} 27. a7 {[%clk 0:01:00.2]} 27... h4
{[%clk 0:00:10.5]} 28. a8=Q {[%clk 0:01:00.2]} 28... hxg3 {[%clk 0:00:10.8]} 29.
Qaa4 {[%clk 0:00:44]} 29... Kg7 {[%clk 0:00:08.2]} 30. Kg2 {[%clk 0:00:40.3]}
30... Rh8 {[%clk 0:00:07.6]} 31. Bd4+ {[%clk 0:00:32.4]} 31... f6 {[%clk
0:00:08.5]} 32. Bxf6+ {[%clk 0:00:33.1]} 32... Qxf6 {[%clk 0:00:05.4]} 33. fxg3
{[%clk 0:00:32.3]} 33... Rh2+ {[%clk 0:00:05]} 34. Kxh2 {[%clk 0:00:33.3]} 34...
Qf2+ {[%clk 0:00:06.1]} 35. Qg2 {[%clk 0:00:34.7]} 35... Bxg3+ {[%clk 0:00:06]}
36. Kh1 {[%clk 0:00:31.6]} 1-0

[Event "*** Titled Tuesday Blitz"]
[Site "Chess.com"]
[Date "2020.01.07"]
[Round "7"]
[White "IMRosen"]
[Black "MathiasWomacka"]
[Result "1/2-1/2"]
[WhiteElo "2573"]
[BlackElo "2373"]
[TimeControl "180+2"]
[EndTime "14:36:17 PST"]
[Termination "Game drawn by agreement"]

1. d4 {[%clk 0:02:50.3]} 1... Nf6 {[%clk 0:03:00.2]} 2. Bf4 {[%clk 0:02:47.3]}
2... c5 {[%clk 0:02:59.3]} 3. e3 {[%clk 0:02:41.5]} 3... e6 {[%clk 0:02:56.9]}
4. Nf3 {[%clk 0:02:41.6]} 4... d5 {[%clk 0:02:57.9]} 5. Nc3 {[%clk 0:02:40.1]}
5... Bd6 {[%clk 0:02:48.9]} 6. Bxd6 {[%clk 0:02:18.2]} 6... Qxd6 {[%clk
0:02:48.2]} 7. dxc5 {[%clk 0:02:20.1]} 7... Qxc5 {[%clk 0:02:49]} 8. Bd3 {[%clk
0:02:22]} 8... O-O {[%clk 0:02:47.8]} 9. O-O {[%clk 0:02:21]} 9... Nc6 {[%clk
0:02:48.6]} 10. e4 {[%clk 0:02:22.1]} 10... d4 {[%clk 0:02:42]} 11. Ne2 {[%clk
0:02:21.4]} 11... e5 {[%clk 0:02:43.1]} 12. Ng3 {[%clk 0:02:18.8]} 12... Be6
{[%clk 0:02:37.4]} 13. Ng5 {[%clk 0:02:09.2]} 13... Bg4 {[%clk 0:02:37.9]} 14.
Nf3 {[%clk 0:01:48]} 14... Nh5 {[%clk 0:02:29.9]} 15. Nxh5 {[%clk 0:01:38.8]}
15... Bxh5 {[%clk 0:02:31.8]} 16. h3 {[%clk 0:01:40.2]} 16... Rac8 {[%clk
0:02:22]} 17. g4 {[%clk 0:01:34.8]} 17... Bg6 {[%clk 0:02:22.2]} 18. Qe2 {[%clk
0:01:36.1]} 18... Nb4 {[%clk 0:02:16]} 19. a3 {[%clk 0:01:23]} 19... Nxd3 {[%clk
0:02:09.4]} 20. cxd3 {[%clk 0:01:24.2]} 20... f6 {[%clk 0:02:10.2]} 21. Qd2
{[%clk 0:01:07.8]} 21... Bf7 {[%clk 0:02:01.1]} 22. Rfc1 {[%clk 0:01:04.6]}
22... Qb6 {[%clk 0:02:00]} 23. Nh4 {[%clk 0:00:57]} 23... g6 {[%clk 0:01:58.4]}
24. Nf3 {[%clk 0:00:57.6]} 24... Be6 {[%clk 0:01:57.1]} 25. Rxc8 {[%clk
0:00:55.2]} 25... Rxc8 {[%clk 0:01:57.5]} 26. Rc1 {[%clk 0:00:56.8]} 26... Rc5
{[%clk 0:01:47]} 27. b4 {[%clk 0:00:36.7]} 27... Rc6 {[%clk 0:01:46.7]} 28. Rc2
{[%clk 0:00:36.6]} 28... Qc7 {[%clk 0:01:47.5]} 29. Ne1 {[%clk 0:00:37.4]} 29...
Bb3 {[%clk 0:01:40.7]} 30. Rxc6 {[%clk 0:00:33.7]} 30... Qxc6 {[%clk 0:01:42.6]}
31. Kf1 {[%clk 0:00:31.7]} 31... Kg7 {[%clk 0:01:40.4]} 32. Ke2 {[%clk 0:00:29]}
32... g5 {[%clk 0:01:36.6]} 33. Qb2 {[%clk 0:00:26.8]} 33... Be6 {[%clk
0:01:33.3]} 34. Nf3 {[%clk 0:00:27.8]} 34... h5 {[%clk 0:01:30.8]} 35. Nh2
{[%clk 0:00:22.3]} 35... Qc8 {[%clk 0:01:24.8]} 36. f3 {[%clk 0:00:23.2]} 36...
h4 {[%clk 0:01:26.1]} 37. Nf1 {[%clk 0:00:23.6]} 37... Qc6 {[%clk 0:01:22.7]}
38. Nd2 {[%clk 0:00:24.5]} 38... Kf7 {[%clk 0:01:19.2]} 39. Kd1 {[%clk
0:00:22.8]} 39... Ke7 {[%clk 0:01:15.9]} 40. Qc2 {[%clk 0:00:18]} 40... Qxc2+
{[%clk 0:01:10.2]} 41. Kxc2 {[%clk 0:00:19.9]} 41... Kd6 {[%clk 0:01:11]} 42.
Kb2 {[%clk 0:00:17.3]} 42... Kc6 {[%clk 0:01:07.9]} 43. Nc4 {[%clk 0:00:06.1]}
43... Bxc4 {[%clk 0:01:01.4]} 44. dxc4 {[%clk 0:00:08]} 44... b6 {[%clk
0:00:58.8]} 45. Kc2 {[%clk 0:00:08.9]} 1/2-1/2

[Event "*** Titled Tuesday Blitz"]
[Site "Chess.com"]
[Date "2020.01.07"]
[Round "7"]
[White "Ray_Yang"]
[Black "arminmusovic"]
[Result "0-1"]
[WhiteElo "2270"]
[BlackElo "2500"]
[TimeControl "180+2"]
[EndTime "14:36:20 PST"]
[Termination "arminmusovic won by resignation"]

1. d4 {[%clk 0:03:01.9]} 1... d5 {[%clk 0:02:52.8]} 2. a3 {[%clk 0:03:02.3]}
2... c5 {[%clk 0:02:52]} 3. dxc5 {[%clk 0:03:03]} 3... e6 {[%clk 0:02:53.4]} 4.
b4 {[%clk 0:03:04.1]} 4... a5 {[%clk 0:02:54]} 5. c3 {[%clk 0:03:03.1]} 5...
axb4 {[%clk 0:02:52.9]} 6. cxb4 {[%clk 0:03:04]} 6... Qf6 {[%clk 0:02:54.1]} 7.
Ra2 {[%clk 0:03:03.2]} 7... Nc6 {[%clk 0:02:55.2]} 8. Bb2 {[%clk 0:02:57.7]}
8... Qg6 {[%clk 0:02:56.1]} 9. Ra1 {[%clk 0:02:53.1]} 9... Nf6 {[%clk
0:02:47.7]} 10. e3 {[%clk 0:02:51]} 10... Be7 {[%clk 0:02:45.2]} 11. Nf3 {[%clk
0:02:52.3]} 11... O-O {[%clk 0:02:46.3]} 12. Nbd2 {[%clk 0:02:53.6]} 12... Ne4
{[%clk 0:02:42.1]} 13. Nxe4 {[%clk 0:02:46.9]} 13... dxe4 {[%clk 0:02:42.9]} 14.
Nd4 {[%clk 0:02:47]} 14... Ne5 {[%clk 0:02:37.5]} 15. g3 {[%clk 0:02:40.8]}
15... Rd8 {[%clk 0:02:34.1]} 16. Be2 {[%clk 0:02:39.6]} 16... b6 {[%clk
0:02:25.8]} 17. cxb6 {[%clk 0:02:29.9]} 17... Bb7 {[%clk 0:02:14.3]} 18. O-O
{[%clk 0:02:30.2]} 18... Nf3+ {[%clk 0:02:11]} 19. Bxf3 {[%clk 0:02:30.6]} 19...
exf3 {[%clk 0:02:12.5]} 20. Re1 {[%clk 0:02:03.7]} 20... e5 {[%clk 0:01:56.5]}
21. Qc2 {[%clk 0:02:03.1]} 21... Qg4 {[%clk 0:01:43]} 22. Qf5 {[%clk 0:01:38.4]}
22... Qe4 {[%clk 0:01:17.2]} 23. Qxe4 {[%clk 0:01:35.9]} 23... Bxe4 {[%clk
0:01:19.1]} 24. Nb5 {[%clk 0:01:32.5]} 24... Rab8 {[%clk 0:01:15.6]} 25. Bxe5
{[%clk 0:01:29.2]} 25... Rxb6 {[%clk 0:01:16.5]} 26. Nd4 {[%clk 0:01:27.8]}
26... Rd5 {[%clk 0:01:07.8]} 27. Bc7 {[%clk 0:01:27.2]} 27... Rh6 {[%clk
0:01:07.6]} 28. Rec1 {[%clk 0:01:14.2]} 28... Rdh5 {[%clk 0:01:06.3]} 29. h4
{[%clk 0:01:09.1]} 29... g5 {[%clk 0:00:58.2]} 30. Be5 {[%clk 0:01:06.6]} 30...
f6 {[%clk 0:00:59.5]} 31. Rc8+ {[%clk 0:01:07]} 31... Kf7 {[%clk 0:01:00.5]} 32.
Bb8 {[%clk 0:00:49.6]} 32... gxh4 {[%clk 0:00:55.7]} 33. g4 {[%clk 0:00:50.8]}
33... Rg6 {[%clk 0:00:51.7]} 34. Kh2 {[%clk 0:00:49]} 34... Rxg4 {[%clk
0:00:52.4]} 35. Rg1 {[%clk 0:00:47.1]} 35... Rxg1 {[%clk 0:00:41.6]} 36. Kxg1
{[%clk 0:00:47.3]} 36... Rg5+ {[%clk 0:00:43.1]} 37. Kf1 {[%clk 0:00:42.5]}
37... h3 {[%clk 0:00:32.9]} 38. Ke1 {[%clk 0:00:33.9]} 38... Rg2 {[%clk
0:00:26.5]} 39. a4 {[%clk 0:00:30.4]} 39... Bxb4+ {[%clk 0:00:26.5]} 40. Kd1
{[%clk 0:00:31.2]} 40... Rxf2 {[%clk 0:00:27.3]} 41. Nc6 {[%clk 0:00:26.6]}
41... Rd2+ {[%clk 0:00:26.5]} 42. Kc1 {[%clk 0:00:25.5]} 42... Rc2+ {[%clk
0:00:27.8]} 43. Kd1 {[%clk 0:00:26.3]} 43... Rxc6 {[%clk 0:00:29]} 0-1